[Event "Titled Tuesday Blitz October 5 2021"]
[White "Arias, Juan Cruz"]
[Black "Makarian, Rudik"]
[WhiteFideId "118540"]
[BlackFideId "44105681"]
[WhiteElo "2083"]
[BlackElo "2480"]
[Result "0-1"]
[Round "02"]
[TimeControl "180+1"]
[Date "2021.10.05"]
[WhiteClock "0:00:11"]
[BlackClock "0:00:52"]

1. d4 {[%clk 0:03:00]}  Nf6 {[%clk 0:02:58]} 2. Nf3 {[%clk 0:03:01]}  e6 {[%clk 0:02:55]} 3. e3 {[%clk 0:03:00]}  c5 {[%clk 0:02:53]} 4. Bd3 {[%clk 0:02:59]}  b6 {[%clk 0:02:53]} 5. O-O {[%clk 0:02:59]}  Bb7 {[%clk 0:02:54]} 6. c4 {[%clk 0:03:00]}  cxd4 {[%clk 0:02:50]} 7. exd4 {[%clk 0:02:59]}  h6 {[%clk 0:02:47]} 8. Nc3 {[%clk 0:02:59]}  Bb4 {[%clk 0:02:47]} 9. d5 {[%clk 0:02:59]}  O-O {[%clk 0:02:45]} 10. Bc2 {[%clk 0:02:26]}  Bxc3 {[%clk 0:02:42]} 11. bxc3 {[%clk 0:02:26]}  Na6 {[%clk 0:02:38]} 12. Nd4 {[%clk 0:02:26]}  Nc5 {[%clk 0:02:30]} 13. Qf3 {[%clk 0:02:18]}  exd5 {[%clk 0:02:28]} 14. cxd5 {[%clk 0:01:58]}  Bxd5 {[%clk 0:02:26]} 15. Qg3 {[%clk 0:01:57]}  Nce4 {[%clk 0:02:26]} 16. Qh3 {[%clk 0:01:50]}  Rc8 {[%clk 0:02:07]} 17. Bxe4 {[%clk 0:01:26]}  Bxe4 {[%clk 0:01:54]} 18. Qg3 {[%clk 0:01:20]}  Bg6 {[%clk 0:01:53]} 19. Ba3 {[%clk 0:01:04]}  Ne4 {[%clk 0:01:52]} 20. Qg4 {[%clk 0:00:53]}  Re8 {[%clk 0:01:49]} 21. Rfe1 {[%clk 0:00:46]}  Nxc3 {[%clk 0:01:45]} 22. Bb2 {[%clk 0:00:39]}  Ne4 {[%clk 0:01:39]} 23. h4 {[%clk 0:00:25]}  Nf6 {[%clk 0:01:36]} 24. Qf3 {[%clk 0:00:19]}  d5 {[%clk 0:01:31]} 25. Nb5 {[%clk 0:00:18]}  Re4 {[%clk 0:01:25]} 26. Qg3 {[%clk 0:00:16]}  Rc2 {[%clk 0:01:23]} 27. Ba3 {[%clk 0:00:15]}  Rg4 {[%clk 0:01:20]} 28. Qf3 {[%clk 0:00:15]}  Be4 {[%clk 0:01:21]} 29. Rxe4 {[%clk 0:00:14]}  dxe4 {[%clk 0:01:20]} 30. Qb3 {[%clk 0:00:14]}  Rxf2 {[%clk 0:00:57]} 31. Kxf2 {[%clk 0:00:13]}  Qd2+ {[%clk 0:00:58]} 32. Kf1 {[%clk 0:00:11]}  e3 {[%clk 0:00:52]} 0-1


[Site "https://www.chess.com"]

[Event "Titled Tuesday Blitz October 5 2021"]
[White "Avila Pavas, Santiago"]
[Black "Kanyamarala, Trisha"]
[WhiteFideId "4437128"]
[BlackFideId "45004722"]
[WhiteElo "2292"]
[BlackElo "2038"]
[Result "1/2-1/2"]
[Round "02"]
[TimeControl "180+1"]
[Date "2021.10.05"]
[WhiteClock "0:00:06"]
[BlackClock "0:00:10"]

1. d4 {[%clk 0:03:00]}  Nf6 {[%clk 0:02:59]} 2. Nf3 {[%clk 0:03:00]}  d5 {[%clk 0:02:58]} 3. Bf4 {[%clk 0:03:00]}  c5 {[%clk 0:02:58]} 4. e3 {[%clk 0:02:59]}  Nc6 {[%clk 0:02:58]} 5. Nc3 {[%clk 0:02:59]}  a6 {[%clk 0:02:56]} 6. dxc5 {[%clk 0:02:54]}  e6 {[%clk 0:02:56]} 7. Na4 {[%clk 0:02:52]}  Nd7 {[%clk 0:02:49]} 8. Nd4 {[%clk 0:02:24]}  Nxc5 {[%clk 0:02:41]} 9. Nxc6 {[%clk 0:02:21]}  bxc6 {[%clk 0:02:39]} 10. c3 {[%clk 0:02:22]}  Nxa4 {[%clk 0:02:31]} 11. Qxa4 {[%clk 0:02:21]}  Bd7 {[%clk 0:02:31]} 12. Bd3 {[%clk 0:02:09]}  c5 {[%clk 0:02:29]} 13. Qc2 {[%clk 0:02:08]}  h6 {[%clk 0:02:18]} 14. c4 {[%clk 0:01:58]}  Qa5+ {[%clk 0:02:12]} 15. Ke2 {[%clk 0:01:57]}  Be7 {[%clk 0:02:07]} 16. Rhd1 {[%clk 0:01:44]}  Bc6 {[%clk 0:01:58]} 17. Kf1 {[%clk 0:01:43]}  O-O {[%clk 0:01:50]} 18. b3 {[%clk 0:01:42]}  Bf6 {[%clk 0:01:48]} 19. Rac1 {[%clk 0:01:42]}  d4 {[%clk 0:01:41]} 20. Re1 {[%clk 0:01:04]}  e5 {[%clk 0:01:40]} 21. Bg3 {[%clk 0:01:03]}  Rfe8 {[%clk 0:01:37]} 22. exd4 {[%clk 0:01:01]}  exd4 {[%clk 0:01:33]} 23. f4 {[%clk 0:01:00]}  Qb6 {[%clk 0:01:21]} 24. Rxe8+ {[%clk 0:00:59]}  Rxe8 {[%clk 0:01:20]} 25. Re1 {[%clk 0:00:59]}  Rxe1+ {[%clk 0:01:18]} 26. Bxe1 {[%clk 0:00:58]}  Qb7 {[%clk 0:01:16]} 27. Qd2 {[%clk 0:00:57]}  Qe7 {[%clk 0:01:11]} 28. Bg3 {[%clk 0:00:55]}  Qd8 {[%clk 0:01:03]} 29. Bf2 {[%clk 0:00:52]}  Be7 {[%clk 0:01:01]} 30. Qe2 {[%clk 0:00:50]}  Bd6 {[%clk 0:01:00]} 31. Qh5 {[%clk 0:00:39]}  Qc7 {[%clk 0:00:54]} 32. f5 {[%clk 0:00:34]}  Be5 {[%clk 0:00:50]} 33. Bh4 {[%clk 0:00:32]}  Qd6 {[%clk 0:00:44]} 34. g3 {[%clk 0:00:24]}  Bf6 {[%clk 0:00:38]} 35. Bxf6 {[%clk 0:00:22]}  Qxf6 {[%clk 0:00:39]} 36. Qe2 {[%clk 0:00:23]}  Bd7 {[%clk 0:00:37]} 37. Qe4 {[%clk 0:00:22]}  g6 {[%clk 0:00:36]} 38. g4 {[%clk 0:00:18]}  h5 {[%clk 0:00:36]} 39. Qd5 {[%clk 0:00:16]}  Be6 {[%clk 0:00:28]} 40. Qxc5 {[%clk 0:00:15]}  hxg4 {[%clk 0:00:27]} 41. Ke2 {[%clk 0:00:07]}  Bxf5 {[%clk 0:00:27]} 42. Bxf5 {[%clk 0:00:08]}  gxf5 {[%clk 0:00:23]} 43. Kd3 {[%clk 0:00:07]}  f4 {[%clk 0:00:21]} 44. Qxd4 {[%clk 0:00:07]}  Qxd4+ {[%clk 0:00:12]} 45. Kxd4 {[%clk 0:00:08]}  g3 {[%clk 0:00:12]} 46. hxg3 {[%clk 0:00:08]}  fxg3 {[%clk 0:00:12]} 47. Ke3 {[%clk 0:00:09]}  f5 {[%clk 0:00:13]} 48. b4 {[%clk 0:00:07]}  f4+ {[%clk 0:00:11]} 49. Kf3 {[%clk 0:00:07]}  Kf7 {[%clk 0:00:11]} 50. a4 {[%clk 0:00:05]}  Ke7 {[%clk 0:00:11]} 51. a5 {[%clk 0:00:04]}  Kd7 {[%clk 0:00:11]} 52. b5 {[%clk 0:00:05]}  axb5 {[%clk 0:00:09]} 53. cxb5 {[%clk 0:00:06]}  Kc7 {[%clk 0:00:09]} 54. b6+ {[%clk 0:00:05]}  Kb7 {[%clk 0:00:09]} 55. Kg2 {[%clk 0:00:06]}  Ka6 {[%clk 0:00:09]} 56. Kf3 {[%clk 0:00:06]}  Kb7 {[%clk 0:00:09]} 57. Kg2 {[%clk 0:00:06]}  Ka6 {[%clk 0:00:10]} 58. Kf3 {[%clk 0:00:06]}  Kb7 {[%clk 0:00:10]} 1/2-1/2


[Site "https://www.chess.com"]

[Event "Titled Tuesday Blitz October 5 2021"]
[White "Avramidou, Anastasia"]
[Black "Seliverstov, Vladimir"]
[WhiteFideId "4239873"]
[BlackFideId "4192036"]
[WhiteElo "2183"]
[BlackElo "2489"]
[Result "0-1"]
[Round "02"]
[TimeControl "180+1"]
[Date "2021.10.05"]
[WhiteClock "0:00:05"]
[BlackClock "0:01:21"]

1. d4 {[%clk 0:02:58]}  Nf6 {[%clk 0:02:59]} 2. Nf3 {[%clk 0:02:55]}  g6 {[%clk 0:02:59]} 3. c4 {[%clk 0:02:54]}  Bg7 {[%clk 0:02:59]} 4. Nc3 {[%clk 0:02:55]}  O-O {[%clk 0:02:59]} 5. e4 {[%clk 0:02:55]}  d6 {[%clk 0:02:59]} 6. h3 {[%clk 0:02:55]}  a6 {[%clk 0:02:59]} 7. g4 {[%clk 0:02:55]}  c5 {[%clk 0:02:59]} 8. d5 {[%clk 0:02:55]}  b5 {[%clk 0:02:59]} 9. cxb5 {[%clk 0:02:55]}  axb5 {[%clk 0:03:00]} 10. Bxb5 {[%clk 0:02:56]}  Nxe4 {[%clk 0:03:00]} 11. Nxe4 {[%clk 0:02:50]}  Qa5+ {[%clk 0:02:59]} 12. Nc3 {[%clk 0:02:48]}  Bxc3+ {[%clk 0:02:59]} 13. bxc3 {[%clk 0:02:49]}  Qxb5 {[%clk 0:03:00]} 14. Bh6 {[%clk 0:02:36]}  Re8 {[%clk 0:02:59]} 15. Rb1 {[%clk 0:02:36]}  Qc4 {[%clk 0:02:56]} 16. Nd2 {[%clk 0:02:24]}  Qxd5 {[%clk 0:02:56]} 17. O-O {[%clk 0:02:24]}  Bb7 {[%clk 0:02:55]} 18. f3 {[%clk 0:02:21]}  Rxa2 {[%clk 0:02:53]} 19. Rf2 {[%clk 0:02:03]}  Nd7 {[%clk 0:02:47]} 20. c4 {[%clk 0:01:40]}  Qc6 {[%clk 0:02:46]} 21. Qb3 {[%clk 0:01:37]}  Ra7 {[%clk 0:02:46]} 22. Qc3 {[%clk 0:01:34]}  f6 {[%clk 0:02:44]} 23. Qe3 {[%clk 0:01:21]}  Ne5 {[%clk 0:02:39]} 24. Bf4 {[%clk 0:01:15]}  Rea8 {[%clk 0:02:34]} 25. Bxe5 {[%clk 0:01:00]}  fxe5 {[%clk 0:02:35]} 26. Ne4 {[%clk 0:00:55]}  Qd7 {[%clk 0:02:14]} 27. Ng3 {[%clk 0:00:47]}  Qe6 {[%clk 0:02:07]} 28. h4 {[%clk 0:00:45]}  Ra3 {[%clk 0:01:59]} 29. Qe2 {[%clk 0:00:41]}  Ra1 {[%clk 0:01:57]} 30. Rff1 {[%clk 0:00:39]}  Rxb1 {[%clk 0:01:54]} 31. Rxb1 {[%clk 0:00:40]}  Bc6 {[%clk 0:01:53]} 32. Rb6 {[%clk 0:00:39]}  Qd7 {[%clk 0:01:46]} 33. h5 {[%clk 0:00:38]}  Rf8 {[%clk 0:01:46]} 34. Rb3 {[%clk 0:00:37]}  Qe6 {[%clk 0:01:44]} 35. hxg6 {[%clk 0:00:32]}  hxg6 {[%clk 0:01:42]} 36. Qc2 {[%clk 0:00:31]}  Bxf3 {[%clk 0:01:39]} 37. g5 {[%clk 0:00:22]}  e4 {[%clk 0:01:36]} 38. Kh2 {[%clk 0:00:12]}  Qg4 {[%clk 0:01:34]} 39. Qf2 {[%clk 0:00:05]}  Qxg5 {[%clk 0:01:32]} 40. Rb2 {[%clk 0:00:02]}  Qh6+ {[%clk 0:01:32]} 41. Kg1 {[%clk 0:00:02]}  Qc1+ {[%clk 0:01:28]} 42. Kh2 {[%clk 0:00:02]}  e3 {[%clk 0:01:28]} 43. Qc2 {[%clk 0:00:01]}  Qxc2+ {[%clk 0:01:27]} 44. Rxc2 {[%clk 0:00:02]}  Rf6 {[%clk 0:01:22]} 45. Rc3 {[%clk 0:00:03]}  e2 {[%clk 0:01:20]} 46. Re3 {[%clk 0:00:02]}  e5 {[%clk 0:01:19]} 47. Nxe2 {[%clk 0:00:02]}  Bxe2 {[%clk 0:01:20]} 48. Rxe2 {[%clk 0:00:03]}  Rf4 {[%clk 0:01:20]} 49. Kg3 {[%clk 0:00:04]}  Rxc4 {[%clk 0:01:20]} 50. Rd2 {[%clk 0:00:05]}  Rd4 {[%clk 0:01:21]} 0-1


[Site "https://www.chess.com"]

[Event "Titled Tuesday Blitz October 5 2021"]
[White "Bujisho, Benjamin"]
[Black "Sadhwani, Raunak"]
[WhiteFideId "608610"]
[BlackFideId "35093487"]
[WhiteElo "2371"]
[BlackElo "2517"]
[Result "1-0"]
[Round "02"]
[TimeControl "180+1"]
[Date "2021.10.05"]
[WhiteClock "0:00:15"]
[BlackClock "0:00:05"]

1. e4 {[%clk 0:03:00]}  e5 {[%clk 0:03:00]} 2. Nc3 {[%clk 0:02:56]}  Nf6 {[%clk 0:03:00]} 3. g3 {[%clk 0:02:55]}  Nc6 {[%clk 0:02:57]} 4. Bg2 {[%clk 0:02:55]}  Bc5 {[%clk 0:02:57]} 5. d3 {[%clk 0:02:55]}  a6 {[%clk 0:02:52]} 6. Nge2 {[%clk 0:02:49]}  d6 {[%clk 0:02:52]} 7. O-O {[%clk 0:02:47]}  h5 {[%clk 0:02:40]} 8. Be3 {[%clk 0:02:34]}  Bxe3 {[%clk 0:02:39]} 9. fxe3 {[%clk 0:02:35]}  h4 {[%clk 0:02:39]} 10. Nd5 {[%clk 0:02:33]}  Nxd5 {[%clk 0:02:38]} 11. exd5 {[%clk 0:02:34]}  Ne7 {[%clk 0:02:39]} 12. e4 {[%clk 0:02:30]}  Ng6 {[%clk 0:02:38]} 13. Qd2 {[%clk 0:02:27]}  Qe7 {[%clk 0:02:32]} 14. c4 {[%clk 0:02:19]}  hxg3 {[%clk 0:02:30]} 15. hxg3 {[%clk 0:02:15]}  Bg4 {[%clk 0:02:27]} 16. Bf3 {[%clk 0:02:00]}  Bxf3 {[%clk 0:02:25]} 17. Rxf3 {[%clk 0:02:00]}  O-O-O {[%clk 0:02:22]} 18. Raf1 {[%clk 0:01:50]}  f6 {[%clk 0:02:09]} 19. R3f2 {[%clk 0:01:48]}  Qd7 {[%clk 0:02:08]} 20. Rg2 {[%clk 0:01:32]}  Rh5 {[%clk 0:01:55]} 21. Kf2 {[%clk 0:01:31]}  Rdh8 {[%clk 0:01:53]} 22. Ke1 {[%clk 0:01:32]}  Qg4 {[%clk 0:01:42]} 23. Kd1 {[%clk 0:01:30]}  Rh1 {[%clk 0:01:35]} 24. Rxh1 {[%clk 0:01:07]}  Rxh1+ {[%clk 0:01:36]} 25. Kc2 {[%clk 0:01:07]}  b6 {[%clk 0:00:51]} 26. Rf2 {[%clk 0:01:02]}  Ne7 {[%clk 0:00:44]} 27. Qe3 {[%clk 0:00:58]}  Rh3 {[%clk 0:00:40]} 28. Qf3 {[%clk 0:00:55]}  Qxf3 {[%clk 0:00:32]} 29. Rxf3 {[%clk 0:00:56]}  Rh2 {[%clk 0:00:32]} 30. Kd1 {[%clk 0:00:56]}  Kd7 {[%clk 0:00:29]} 31. Ke1 {[%clk 0:00:56]}  Ke8 {[%clk 0:00:29]} 32. Rf2 {[%clk 0:00:57]}  Rh1+ {[%clk 0:00:28]} 33. Rf1 {[%clk 0:00:56]}  Rh2 {[%clk 0:00:29]} 34. Rf2 {[%clk 0:00:57]}  Rh8 {[%clk 0:00:29]} 35. Kf1 {[%clk 0:00:54]}  Rh1+ {[%clk 0:00:29]} 36. Ng1 {[%clk 0:00:54]}  Kf7 {[%clk 0:00:28]} 37. Kg2 {[%clk 0:00:54]}  Rh8 {[%clk 0:00:29]} 38. Nf3 {[%clk 0:00:54]}  Ke8 {[%clk 0:00:22]} 39. b4 {[%clk 0:00:44]}  c6 {[%clk 0:00:22]} 40. Rc2 {[%clk 0:00:29]}  Kd7 {[%clk 0:00:22]} 41. Nh4 {[%clk 0:00:27]}  Rc8 {[%clk 0:00:21]} 42. dxc6+ {[%clk 0:00:25]}  Nxc6 {[%clk 0:00:22]} 43. a3 {[%clk 0:00:25]}  Nd4 {[%clk 0:00:22]} 44. Rc1 {[%clk 0:00:24]}  Ke6 {[%clk 0:00:18]} 45. Nf3 {[%clk 0:00:24]}  Nc6 {[%clk 0:00:17]} 46. Kf2 {[%clk 0:00:22]}  Ne7 {[%clk 0:00:17]} 47. Rh1 {[%clk 0:00:21]}  b5 {[%clk 0:00:17]} 48. Rc1 {[%clk 0:00:19]}  Kd7 {[%clk 0:00:16]} 49. Nd2 {[%clk 0:00:19]}  d5 {[%clk 0:00:16]} 50. exd5 {[%clk 0:00:18]}  Nxd5 {[%clk 0:00:16]} 51. Ne4 {[%clk 0:00:18]}  Ke7 {[%clk 0:00:11]} 52. Nc5 {[%clk 0:00:16]}  Nb6 {[%clk 0:00:11]} 53. Nxa6 {[%clk 0:00:13]}  bxc4 {[%clk 0:00:12]} 54. dxc4 {[%clk 0:00:14]}  Rxc4 {[%clk 0:00:13]} 55. Rxc4 {[%clk 0:00:14]}  Nxc4 {[%clk 0:00:13]} 56. a4 {[%clk 0:00:14]}  Kd6 {[%clk 0:00:14]} 57. Nc5 {[%clk 0:00:14]}  f5 {[%clk 0:00:13]} 58. a5 {[%clk 0:00:14]}  Nxa5 {[%clk 0:00:12]} 59. Ne4+ {[%clk 0:00:14]}  Kc6 {[%clk 0:00:04]} 60. bxa5 {[%clk 0:00:15]}  Kb5 {[%clk 0:00:04]} 61. Nd6+ {[%clk 0:00:15]}  Kxa5 {[%clk 0:00:05]} 62. Nxf5 {[%clk 0:00:15]} 1-0


[Site "https://www.chess.com"]

[Event "Titled Tuesday Blitz October 5 2021"]
[White "Bures, Vit"]
[Black "Gorin, Leonid"]
[WhiteFideId "309052"]
[BlackFideId "4131991"]
[WhiteElo "2132"]
[BlackElo "2363"]
[Result "0-1"]
[Round "02"]
[TimeControl "180+1"]
[Date "2021.10.05"]
[WhiteClock "0:00:49"]
[BlackClock "0:01:07"]

1. d4 {[%clk 0:03:00]}  Nf6 {[%clk 0:02:54]} 2. c4 {[%clk 0:03:00]}  e6 {[%clk 0:02:53]} 3. Nc3 {[%clk 0:03:00]}  Bb4 {[%clk 0:02:52]} 4. e3 {[%clk 0:03:00]}  b6 {[%clk 0:02:52]} 5. Ne2 {[%clk 0:02:58]}  Ba6 {[%clk 0:02:51]} 6. Ng3 {[%clk 0:02:57]}  h5 {[%clk 0:02:48]} 7. Bd3 {[%clk 0:02:55]}  Bb7 {[%clk 0:02:46]} 8. O-O {[%clk 0:02:46]}  h4 {[%clk 0:02:45]} 9. Nge2 {[%clk 0:02:46]}  h3 {[%clk 0:02:44]} 10. g3 {[%clk 0:02:46]}  Bf3 {[%clk 0:02:32]} 11. Qc2 {[%clk 0:02:45]}  Bxc3 {[%clk 0:02:26]} 12. Nxc3 {[%clk 0:02:44]}  Nc6 {[%clk 0:02:26]} 13. a3 {[%clk 0:02:39]}  d6 {[%clk 0:02:12]} 14. b4 {[%clk 0:02:37]}  e5 {[%clk 0:02:08]} 15. d5 {[%clk 0:02:34]}  Ne7 {[%clk 0:02:06]} 16. e4 {[%clk 0:02:34]}  Qd7 {[%clk 0:01:58]} 17. c5 {[%clk 0:02:29]}  Qg4 {[%clk 0:01:52]} 18. cxd6 {[%clk 0:02:10]}  cxd6 {[%clk 0:01:51]} 19. Bb5+ {[%clk 0:01:53]}  Kf8 {[%clk 0:01:50]} 20. Re1 {[%clk 0:01:47]}  Rc8 {[%clk 0:01:49]} 21. Bd2 {[%clk 0:01:38]}  Bxe4 {[%clk 0:01:35]} 22. Rxe4 {[%clk 0:01:28]}  Rxc3 {[%clk 0:01:30]} 23. Qxc3 {[%clk 0:01:06]}  Qxe4 {[%clk 0:01:21]} 24. Bf1 {[%clk 0:01:06]}  Nfxd5 {[%clk 0:01:18]} 25. Qc1 {[%clk 0:00:56]}  f6 {[%clk 0:01:16]} 26. Qd1 {[%clk 0:00:50]}  Kf7 {[%clk 0:01:14]} 27. Qg4 {[%clk 0:00:49]}  Qxg4 {[%clk 0:01:07]} 0-1


[Site "https://www.chess.com"]

[Event "Titled Tuesday Blitz October 5 2021"]
[White "Coto Mederos, Michel"]
[Black "Warmerdam, Max"]
[WhiteFideId "3508528"]
[BlackFideId "1048104"]
[WhiteElo "2427"]
[BlackElo "2537"]
[Result "0-1"]
[Round "02"]
[TimeControl "180+1"]
[Date "2021.10.05"]
[WhiteClock "0:00:16"]
[BlackClock "0:00:59"]

1. c4 {[%clk 0:03:00]}  e6 {[%clk 0:02:59]} 2. Nc3 {[%clk 0:03:00]}  d5 {[%clk 0:03:00]} 3. d4 {[%clk 0:02:59]}  a6 {[%clk 0:03:01]} 4. cxd5 {[%clk 0:02:56]}  exd5 {[%clk 0:03:01]} 5. Nf3 {[%clk 0:02:56]}  c6 {[%clk 0:03:01]} 6. Bg5 {[%clk 0:02:53]}  Be7 {[%clk 0:03:01]} 7. Bxe7 {[%clk 0:02:52]}  Qxe7 {[%clk 0:03:02]} 8. e3 {[%clk 0:02:53]}  Bf5 {[%clk 0:03:01]} 9. Bd3 {[%clk 0:02:52]}  Bxd3 {[%clk 0:03:00]} 10. Qxd3 {[%clk 0:02:53]}  Nf6 {[%clk 0:03:01]} 11. O-O {[%clk 0:02:53]}  Nbd7 {[%clk 0:03:01]} 12. Rab1 {[%clk 0:02:48]}  a5 {[%clk 0:02:59]} 13. Rfc1 {[%clk 0:02:45]}  O-O {[%clk 0:02:59]} 14. Nd2 {[%clk 0:02:42]}  Rfe8 {[%clk 0:02:47]} 15. Na4 {[%clk 0:02:39]}  g6 {[%clk 0:02:41]} 16. a3 {[%clk 0:02:34]}  h5 {[%clk 0:02:38]} 17. h3 {[%clk 0:02:33]}  h4 {[%clk 0:02:38]} 18. Nc5 {[%clk 0:02:30]}  Nxc5 {[%clk 0:02:38]} 19. Rxc5 {[%clk 0:02:29]}  a4 {[%clk 0:02:39]} 20. Re1 {[%clk 0:02:19]}  Ra6 {[%clk 0:02:31]} 21. f3 {[%clk 0:02:14]}  Nh5 {[%clk 0:02:25]} 22. Rcc1 {[%clk 0:02:05]}  Rb6 {[%clk 0:02:25]} 23. Qc2 {[%clk 0:02:02]}  Qg5 {[%clk 0:02:24]} 24. Nf1 {[%clk 0:01:59]}  Rb3 {[%clk 0:02:24]} 25. Rcd1 {[%clk 0:01:50]}  Re6 {[%clk 0:02:16]} 26. Rd3 {[%clk 0:01:43]}  Qf5 {[%clk 0:02:07]} 27. Rd2 {[%clk 0:01:30]}  Qf6 {[%clk 0:02:00]} 28. Rd3 {[%clk 0:01:27]}  Rb5 {[%clk 0:01:50]} 29. e4 {[%clk 0:01:18]}  Nf4 {[%clk 0:01:48]} 30. Rd2 {[%clk 0:01:12]}  Qg5 {[%clk 0:01:47]} 31. Kh2 {[%clk 0:01:11]}  Rb3 {[%clk 0:01:43]} 32. Rf2 {[%clk 0:00:58]}  Nd3 {[%clk 0:01:36]} 33. Rfe2 {[%clk 0:00:45]}  Nxe1 {[%clk 0:01:34]} 34. Rxe1 {[%clk 0:00:46]}  Qf6 {[%clk 0:01:28]} 35. Qd2 {[%clk 0:00:42]}  Kg7 {[%clk 0:01:22]} 36. Kh1 {[%clk 0:00:40]}  dxe4 {[%clk 0:01:20]} 37. fxe4 {[%clk 0:00:41]}  g5 {[%clk 0:01:07]} 38. Nh2 {[%clk 0:00:36]}  Qf4 {[%clk 0:01:07]} 39. Qc2 {[%clk 0:00:33]}  Re3 {[%clk 0:01:07]} 40. Rxe3 {[%clk 0:00:22]}  Qxe3 {[%clk 0:01:07]} 41. Nf3 {[%clk 0:00:22]}  Rxe4 {[%clk 0:01:04]} 42. Qxa4 {[%clk 0:00:23]}  Qc1+ {[%clk 0:01:02]} 43. Kh2 {[%clk 0:00:23]}  Qf4+ {[%clk 0:01:01]} 44. Kh1 {[%clk 0:00:21]}  Re2 {[%clk 0:01:01]} 45. Qb3 {[%clk 0:00:16]}  Qg3 {[%clk 0:00:59]} 0-1


[Site "https://www.chess.com"]

[Event "Titled Tuesday Blitz October 5 2021"]
[White "Csonka, Balazs"]
[Black "Fernandez Hernandez, Arturo A."]
[WhiteFideId "742910"]
[BlackFideId "3509230"]
[WhiteElo "2404"]
[BlackElo "2400"]
[Result "0-1"]
[Round "02"]
[TimeControl "180+1"]
[Date "2021.10.05"]
[WhiteClock "0:00:01"]
[BlackClock "0:00:25"]

1. d4 {[%clk 0:03:00]}  f5 {[%clk 0:02:59]} 2. Bf4 {[%clk 0:02:57]}  e6 {[%clk 0:02:55]} 3. e3 {[%clk 0:02:55]}  Nf6 {[%clk 0:02:54]} 4. Nf3 {[%clk 0:02:54]}  b6 {[%clk 0:02:50]} 5. h3 {[%clk 0:02:53]}  Bd6 {[%clk 0:02:48]} 6. Ne5 {[%clk 0:02:44]}  Bb7 {[%clk 0:02:37]} 7. Nc3 {[%clk 0:02:42]}  Nc6 {[%clk 0:02:32]} 8. Rg1 {[%clk 0:02:25]}  Bb4 {[%clk 0:02:26]} 9. a3 {[%clk 0:02:14]}  Bxc3+ {[%clk 0:02:24]} 10. bxc3 {[%clk 0:02:15]}  Nxe5 {[%clk 0:02:16]} 11. Bxe5 {[%clk 0:02:14]}  O-O {[%clk 0:02:13]} 12. g4 {[%clk 0:01:42]}  fxg4 {[%clk 0:02:05]} 13. hxg4 {[%clk 0:01:13]}  Ne4 {[%clk 0:01:55]} 14. Bg3 {[%clk 0:01:10]}  Nxg3 {[%clk 0:01:31]} 15. Rxg3 {[%clk 0:01:09]}  Rxf2 {[%clk 0:01:30]} 16. Kxf2 {[%clk 0:00:44]}  Qh4 {[%clk 0:01:28]} 17. Bg2 {[%clk 0:00:36]}  Rf8+ {[%clk 0:01:25]} 18. Bf3 {[%clk 0:00:35]}  Rxf3+ {[%clk 0:00:55]} 19. Qxf3 {[%clk 0:00:36]}  Bxf3 {[%clk 0:00:55]} 20. Kxf3 {[%clk 0:00:37]}  Qh2 {[%clk 0:00:54]} 21. Rg2 {[%clk 0:00:37]}  Qd6 {[%clk 0:00:49]} 22. Rf2 {[%clk 0:00:07]}  Qc6+ {[%clk 0:00:42]} 23. Kg3 {[%clk 0:00:07]}  Qxc3 {[%clk 0:00:42]} 24. Raf1 {[%clk 0:00:08]}  h6 {[%clk 0:00:38]} 25. Rf3 {[%clk 0:00:05]}  Qxa3 {[%clk 0:00:36]} 26. Rf7 {[%clk 0:00:04]}  Qxe3+ {[%clk 0:00:35]} 27. R1f3 {[%clk 0:00:04]}  Qg1+ {[%clk 0:00:33]} 28. Kh3 {[%clk 0:00:02]}  Qxd4 {[%clk 0:00:31]} 29. Kh4 {[%clk 0:00:03]}  a5 {[%clk 0:00:26]} 30. Kh5 {[%clk 0:00:03]}  Qe5+ {[%clk 0:00:24]} 31. Kh4 {[%clk 0:00:02]}  Qh2+ {[%clk 0:00:24]} 32. Rh3 {[%clk 0:00:01]}  Qxh3+ {[%clk 0:00:24]} 33. Kxh3 {[%clk 0:00:01]}  Kxf7 {[%clk 0:00:25]} 0-1


[Site "https://www.chess.com"]

[Event "Titled Tuesday Blitz October 5 2021"]
[White "Demin, Vladimir"]
[Black "Dardha, Daniel"]
[WhiteFideId "4167457"]
[BlackFideId "240990"]
[WhiteElo "2514"]
[BlackElo "2489"]
[Result "1-0"]
[Round "02"]
[TimeControl "180+1"]
[Date "2021.10.05"]
[WhiteClock "0:00:49"]
[BlackClock "0:01:38"]

1. e4 {[%clk 0:03:00]}  d6 {[%clk 0:02:56]} 2. d4 {[%clk 0:03:00]}  Nf6 {[%clk 0:02:56]} 3. Nc3 {[%clk 0:03:01]}  Bg4 {[%clk 0:02:56]} 4. f3 {[%clk 0:02:57]}  Bh5 {[%clk 0:02:56]} 5. h4 {[%clk 0:02:55]}  h6 {[%clk 0:02:55]} 6. Be3 {[%clk 0:02:54]}  e6 {[%clk 0:02:54]} 7. Qd2 {[%clk 0:02:54]}  d5 {[%clk 0:02:54]} 8. g4 {[%clk 0:02:42]}  Bg6 {[%clk 0:02:54]} 9. e5 {[%clk 0:02:30]}  Nfd7 {[%clk 0:02:54]} 10. Nge2 {[%clk 0:02:15]}  c5 {[%clk 0:02:50]} 11. Nf4 {[%clk 0:02:14]}  Bh7 {[%clk 0:02:47]} 12. g5 {[%clk 0:02:06]}  cxd4 {[%clk 0:02:40]} 13. Bxd4 {[%clk 0:02:03]}  Nc6 {[%clk 0:02:38]} 14. g6 {[%clk 0:01:58]}  Bxg6 {[%clk 0:02:23]} 15. Nxg6 {[%clk 0:01:58]}  fxg6 {[%clk 0:02:24]} 16. f4 {[%clk 0:01:36]}  Nxd4 {[%clk 0:02:21]} 17. Qxd4 {[%clk 0:01:36]}  Qb6 {[%clk 0:02:21]} 18. Qd3 {[%clk 0:01:34]}  Kf7 {[%clk 0:02:16]} 19. O-O-O {[%clk 0:01:19]}  Bb4 {[%clk 0:02:12]} 20. Nxd5 {[%clk 0:01:03]}  exd5 {[%clk 0:02:12]} 21. Qxd5+ {[%clk 0:01:02]}  Kf8 {[%clk 0:02:09]} 22. Bc4 {[%clk 0:00:53]}  Qe3+ {[%clk 0:02:00]} 23. Kb1 {[%clk 0:00:53]}  Ke8 {[%clk 0:01:38]} 24. Qxd7+ {[%clk 0:00:49]} 1-0


[Site "https://www.chess.com"]